Cogmind - Beta 14 @@@ ROGUE MODE // 2024.12.15 @ 04:27:48 Player: Dzuchun Result: Destroyed by G-47 Trooper with Particle Gun Performance ------------- Evolutions (2) 1000 Regions Visited (4) 800 Robots Destroyed (51) 255 Value Destroyed (1189) 1189 Prototype IDs (3) 60 Alien Tech Used (0) 0 Bonus (-16) -16 TOTAL SCORE: 3288 Bonus ------- Friendly Fire -16 Cogmind --------- Core Integrity 0/550 Matter 280/300 Energy 160/160 System Corruption 0% Temperature Cool (9) Movement Core (400) Ox7 Location -8/Materials Parts ------- > --- POWER (2) -------- Light Nuclear Core > --- PROPULSION (4) --- (None) > --- UTILITY (3) ------ Medium Storage Unit Medium Armor Plating > --- WEAPON (2) ------- (None) > --- INVENTORY (10) --- Visual Processing Unit Advanced Visual Processing Unit Improved Grenade Launcher Mining Claw Peak State ------------ > --- POWER ------------ Ion Engine Light Deuterium Engine > --- PROPULSION ------- Aluminum Leg Aluminum Leg Aluminum Leg Improved Aluminum Leg > --- UTILITY ---------- Improved Heat Sink Medium Storage Unit Improved Light Armor Plating > --- WEAPON ----------- Improved Medium Laser Field Laser > --- INVENTORY -------- Light Nuclear Core Visual Processing Unit Advanced Visual Processing Unit Beam Cannon Light Assault Rifle Improved Grenade Launcher Mining Claw [Rating: 23] Favorites ----------- Power Improved Ion Engine Engine Improved Ion Engine Power Core Light Nuclear Core Propulsion Aluminum Leg Leg Aluminum Leg Utility Small Storage Unit Device Shield Generator Storage Small Storage Unit Processor Signal Interpreter Hackware Hacking Suite Protection Improved Light Armor Plating Weapon Beam Cannon Energy Gun Improved Medium Laser Energy Cannon Beam Cannon Ballistic Gun Assault Rifle Launcher Improved Grenade Launcher Slashing Weapon Mining Claw Build | -11 -10 -9 -9 -8 ------- Run | Yrd Mat Mat Min Mat Slots Evolved 4 | . . 2 . 2 Power 1 | . . . . 1 Propulsion 2 | . . 2 . . Utility 1 | . . . . 1 Weapon . | . . . . . Parts Attached 61 | 7 8 9 10 27 Power 11 | 1 1 1 2 6 Engine 8 | 1 1 1 2 3 Core 3 | . . . . 3 Reactor . | . . . . . Propulsion 17 | 2 . 5 7 3 Treads . | . . . . . Leg 17 | 2 . 5 7 3 Wheel . | . . . . . Hover . | . . . . . Flight . | . . . . . Utility 15 | 2 3 2 1 7 Device 7 | 1 1 1 1 3 Storage 3 | 1 1 . . 1 Processor 1 | . 1 . . . Hackware 1 | . . 1 . . Protection 3 | . . . . 3 Artifact . | . . . . . Weapon 18 | 2 4 1 . 11 Energy Gun 6 | . . 1 . 5 Energy Cannon 3 | . 2 . . 1 Ballistic Gun 6 | 2 2 . . 2 Ballistic Cannon . | . . . . . Launcher 1 | . . . . 1 Special Weapon . | . . . . . Impact Weapon . | . . . . . Slashing Weapon 2 | . . . . 2 Piercing Weapon . | . . . . . Special Melee Weapon . | . . . . . Unidentified Prototypes 1 | . . 1 . . Parts Lost 23 | . 1 2 . 20 Power 6 | . 1 . . 5 Propulsion 7 | . . 1 . 6 Utility 6 | . . 1 . 5 Weapon 4 | . . . . 4 Highest Loss Streak 14 | . 1 2 . 14 To Critical Strikes . | . . . . . Average Slot Usage (%) 93 | . 87 95 99 86 Engine 12 | . 13 11 11 13 Leg 35 | . 28 39 43 27 Device 10 | . 7 7 11 13 Storage 8 | . 1 11 11 9 Processor 1 | . 7 1 . . Energy Gun 8 | . . 9 11 11 Energy Cannon 7 | . 2 12 11 2 Ballistic Gun 5 | . 25 . . 1 Peak Build Rating 23 | 7 7 14 15 23 Average Rating 12 | 5 6 11 14 18 On Entrance 8 | . 7 7 13 15 Naked Turns . | . . . . . Heaviest Build 36 | 13 14 17 20 36 Greatest Support 43 | 20 20 40 43 43 Greatest Overweight (x) 11 | . . . . 11 Average Overweight (x) . | . . . . . Largest Inventory Capacity 10 | 8 8 8 8 10 Average Capacity 7 | 7 5 8 8 9 Most Carried 8 | 4 8 8 8 8 Average Carried 6 | 2 5 7 7 6 Final Capacity 10 | 8 8 8 8 10 Final Carried 8 | 3 8 8 8 4 Class Distribution -------------------- 63% | Scavenger-Mutant 36% | Mutant Dominant Class ---------------- Mutant | -10/Materials Scavenger-Mutant | -9/Materials Scavenger-Mutant | -9/Mines Scavenger-Mutant | -8/Materials Resources | -11 -10 -9 -9 -8 ----------- Run | Yrd Mat Mat Min Mat Matter Collected 1035 | 392 205 110 100 228 Remotely . | . . . . . Salvage Created 1522 | 267 349 319 223 364 Parts 111 | 37 24 20 9 21 Haulers Intercepted 2 | . 2 . . . Recyclers Shooed . | . . . . . Parts Field Recycled . | . . . . . Retrieved Matter . | . . . . . Parts Self-Destructed . | . . . . . Prevented . | . . . . . Kills | -11 -10 -9 -9 -8 ------- Run | Yrd Mat Mat Min Mat Combat Hostiles Destroyed 30 | . 8 6 5 11 Guns 19 | . 8 2 4 5 Cannons 7 | . . 4 1 2 AOE 4 | . . . . 4 Classes Destroyed 12 | 3 4 2 1 2 Worker 4 | 2 1 . . 1 Builder 1 | . . . . 1 Tunneler 9 | 9 . . . . Hauler 2 | . 2 . . . Recycler 1 | 1 . . . . Operator 1 | . . 1 . . Watcher 3 | . 1 2 . . Swarmer 8 | . 6 . . 2 Grunt 16 | . 2 5 4 5 Duelist 1 | . . . 1 . Sentry 4 | . . 1 . 3 Hunter 1 | . . . . 1 Best Kill Streak 7 | 5 4 3 2 7 Combat Bots Only 5 | . 4 3 2 5 Max Kills in Single Turn 3 | 1 1 2 1 3 Gunslinging . | . . . . . Exploded 2 | . . . . 2 Melee . | . . . . . Uniques/NPCs Destroyed . | . . . . . Combat | -11 -10 -9 -9 -8 -------- Run | Yrd Mat Mat Min Mat Hostile Shots Fired 371 | . 52 40 62 217 Missed 92 | . 14 6 24 48 Damage Taken 3534 | . 377 369 464 2324 Core 793 | . 53 75 111 554 Absorbed by Shields 144 | . . . 91 53 Regen/Repaired (Parts) 72 | . . 72 . . Core Remaining (%) 77 | 100 78 . 53 . Volleys Fired 137 | 23 33 23 18 40 Largest 2 | 2 2 2 2 2 Hottest 125 | 40 40 120 116 125 Shots Fired 253 | 44 66 46 36 61 Gun 182 | 44 66 15 18 39 Cannon 66 | . . 31 18 17 Launcher 5 | . . . . 5 Special . | . . . . . Kinetic 123 | 44 66 . . 13 Thermal 125 | . . 46 36 43 Explosive 5 | . . . . 5 Electromagnetic . | . . . . . Robot Hit Streak 12 | 9 12 8 5 11 Robot Miss Streak 4 | 2 3 4 3 3 Penetration Max . | . . . . . Secondary Targets 2 | . 2 . . . Max Gunslinging Chain 1 | . 1 . . . Shots Hit Robots 157 | 27 42 26 18 44 Core Hits 85 | 13 18 11 8 35 Critical Kills . | . . . . . Critical Parts Destroyed 1 | . . . . 1 Critical Strikes 3 | . . 1 . 2 Burn 2 | . . 1 . 1 Destroy 1 | . . . . 1 Melee Attacks 2 | . . . . 2 Impact . | . . . . . Slashing 2 | . . . . 2 Piercing . | . . . . . Sneak Attacks . | . . . . . Combat Hostiles . | . . . . . Follow-up Attacks . | . . . . . Damage Inflicted 2819 | 326 438 448 327 1280 Guns 1524 | 326 438 151 186 423 Cannons 633 | . . 297 140 196 Explosions 639 | . . . . 639 Melee 22 | . . . . 22 Ramming 1 | . . . 1 . Kinetic 858 | 326 438 . . 94 Thermal 1299 | . . 448 326 525 Explosive 639 | . . . . 639 Electromagnetic . | . . . . . Impact . | . . . . . Slashing 22 | . . . . 22 Piercing . | . . . . . Highest Corruption . | . . . . . Average Corruption . | . . . . . Corruption Purged . | . . . . . Corruption Blocked . | . . . . . Overload Shots . | . . . . . Overflow Damage . | . . . . . Projectiles . | . . . . . Explosions . | . . . . . Melee . | . . . . . Knockbacks . | . . . . . Impact . | . . . . . Kinetic . | . . . . . Secondary . | . . . . . Self-Inflicted Damage 58 | . . . . 58 Shots 2 | . . . . 2 Rammed . | . . . . . Targets Rammed 1 | . . . 1 . Kicked 1 | . . . 1 . Crushed . | . . . . . Highest Temperature 393 | . 6 393 257 228 Average Temperature 108 | . 3 143 79 106 Received Heat Transfer 1164 | . 111 147 207 699 Effects 1 | . . 1 . . Shutdowns 1 | . . 1 . . Siege Activations . | . . . . . Robots Corrupted . | . . . . . Combat Hostiles . | . . . . . Parts Fried . | . . . . . Impact Corruptions . | . . . . . Robots Melted . | . . . . . Combat Hostiles . | . . . . . Parts Melted 5 | . . 1 2 2 Heat Transferred 2819 | . . 1036 703 1080 Parts Sabotaged . | . . . . . Parts Stolen . | . . . . . Parts Stripped . | . . . . . Power Chain Reactions . | . . . . . Alert | -11 -10 -9 -9 -8 ------- Run | Yrd Mat Mat Min Mat Peak Influence 374 | 60 374 357 146 238 Initial 78 | . 39 78 61 11 Average 125 | 23 240 231 82 49 Maximum Alert Level 1 | . 1 1 . 1 Low Security (%) 79 | 100 44 39 100 98 Level 1 20 | . 55 60 . 1 Level 2 . | . . . . . Level 3 . | . . . . . Level 4 . | . . . . . Level 5 . | . . . . . High Security . | . . . . . Max Security . | . . . . . Squads Dispatched 5 | . 1 2 . 2 Investigation 1 | . . . . 1 Extermination . | . . . . . Reinforcement 4 | . 1 2 . 1 Assault . | . . . . . Garrison . | . . . . . Intercept . | . . . . . Searches Triggered . | . . . . . Construction Impeded . | . . . . . Haulers Reinforced . | . . . . . Active Scanning Responses . | . . . . . Cargo Convoy Interrupts . | . . . . . Stealth | -11 -10 -9 -9 -8 --------- Run | Yrd Mat Mat Min Mat Distress Signals 7 | . 3 3 . 1 Communications Jammed . | . . . . . Distress Signals . | . . . . . Times Spotted 62 | . 15 19 10 18 Peak Tracking Total 8 | . 6 7 3 8 Tactical Retreats 7 | . 3 1 2 1 Traps | -11 -10 -9 -9 -8 ------- Run | Yrd Mat Mat Min Mat Traps Triggered . | . . . . . Indirectly . | . . . . . Trap Hack Attempts . | . . . . . Triggered . | . . . . . Disarmed . | . . . . . Reprogrammed . | . . . . . Reused . | . . . . . Traps Extracted . | . . . . . Installed . | . . . . . Triggered . | . . . . . Machines | -11 -10 -9 -9 -8 ---------- Run | Yrd Mat Mat Min Mat Machines Disabled 2 | . . 1 . 1 Max in Single Turn 1 | . . 1 . 1 Machines Repaired . | . . . . . Machines Dismantled . | . . . . . Machines Sabotaged . | . . . . . Overloaded Fab Kills . | . . . . . Hacking | -11 -10 -9 -9 -8 --------- Run | Yrd Mat Mat Min Mat Machines Accessed 7 | . 2 2 . 3 Terminals 6 | . 2 1 . 3 Fabricators . | . . . . . Repair Stations 1 | . . 1 . . Recycling Units . | . . . . . Scanalyzers . | . . . . . Garrison Access . | . . . . . Total Hacks 18 | . 6 5 . 7 Successful 13 | . 4 3 . 6 Failed 5 | . 2 2 . 1 Catastrophic . | . . . . . Database Lockouts . | . . . . . Manual . | . . . . . Terminals 15 | . 6 2 . 7 Fabricators . | . . . . . Repair Stations 3 | . . 3 . . Recycling Units . | . . . . . Scanalyzers . | . . . . . Garrison Access . | . . . . . Terminal Hacks 11 | . 4 1 . 6 Record 2 | . . . . 2 Robot Analysis 1 | . 1 . . . Prototype ID Bank 1 | . . . . 1 Branch Access Points 1 | . . 1 . . Terminal Index 1 | . . . . 1 Locate Traps 1 | . 1 . . . Maintenance Status 1 | . 1 . . . Zone Layout 3 | . 1 . . 2 Fabricator Hacks . | . . . . . Repair Station Hacks 2 | . . 2 . . Scan Component 1 | . . 1 . . Repair 1 | . . 1 . . Recycling Unit Hacks . | . . . . . Scanalyzer . | . . . . . Garrison Access Hacks . | . . . . . Unauthorized Hacks . | . . . . . Terminals . | . . . . . Fabricators . | . . . . . Repair Stations . | . . . . . Recycling Units . | . . . . . Scanalyzers . | . . . . . Garrison Access . | . . . . . Data Cores Recovered . | . . . . . Used . | . . . . . Hacking Detections 4 | . 1 1 . 2 Full Trace Events 2 | . 1 . . 1 Feedback Events . | . . . . . Feedback Blocked . | . . . . . Robot Schematics Acquired . | . . . . . Robots Built . | . . . . . Authchips . | . . . . . Time . | . . . . . Total Robot Build Rating . | . . . . . Part Schematics Acquired . | . . . . . Parts Built . | . . . . . Authchips . | . . . . . Time . | . . . . . Total Part Build Rating . | . . . . . Parts Repaired 1 | . . 1 . . Time 13 | . . 13 . . Parts Recycled . | . . . . . Recycled Matter . | . . . . . Retrieved Matter . | . . . . . Retrieved Components . | . . . . . Parts Scanalyzed . | . . . . . Part Schematics Acquired . | . . . . . Parts Damaged . | . . . . . Bothacking | -11 -10 -9 -9 -8 ------------ Run | Yrd Mat Mat Min Mat Used RIF Installer . | . . . . . Robots Hacked . | . . . . . Non-combat . | . . . . . Combat . | . . . . . Robot Hacks Applied . | . . . . . Relay Couplers Released . | . . . . . Fabnet Peak Effective % . | . . . . . Robots Rewired . | . . . . . Allies Hacked . | . . . . . Hacks Repelled . | . . . . . Allies | -11 -10 -9 -9 -8 -------- Run | Yrd Mat Mat Min Mat Total Allies . | . . . . . Largest Group . | . . . . . Highest-Rated Group . | . . . . . Highest-Rated Ally . | . . . . . Total Orders . | . . . . . Ally Attacks . | . . . . . Total Damage . | . . . . . Kills . | . . . . . Allies Corrupted . | . . . . . Allies Melted . | . . . . . Intel | -11 -10 -9 -9 -8 ------- Run | Yrd Mat Mat Min Mat Robot Analysis Total 1 | . 1 . . . Derelict Logs Recovered 2 | . . . 2 . Drone Launches . | . . . . . Drone Recoveries . | . . . . . Exploration | -11 -10 -9 -9 -8 ------------- Run | Yrd Mat Mat Min Mat Turns Passed 2735 | 243 527 451 922 592 Spaces Moved 1757 | 137 324 282 675 339 Core 9 | 2 . . . 7 Treads . | . . . . . Legs 1748 | 135 324 282 675 332 Wheels . | . . . . . Hover . | . . . . . Flight . | . . . . . Fastest Speed 50 | 50 120 120 120 120 Average Speed 121 | 118 120 120 120 130 Slowest Speed 600 | 120 120 120 120 600 Overloaded Moves . | . . . . . Propulsion Burnouts . | . . . . . Robots Hopped . | . . . . . Cave-ins Triggered . | . . . . . Exploration Rate (%) 43 | 6 51 41 90 27 Regions Visited 4 Branch Regions 1 Pre-discovered Areas . | . . . . . Known Exits Taken 2 | . 1 1 . . Unknown Exits Taken 2 | 1 . . 1 . Scrap Searched 3 | . . . 3 . Spaces Dug 1 | . . . . 1 Terrain Destroyed 44 | . . . . 44 Melee 1 | . . . . 1 Projectile . | . . . . . AOE 43 | . . . . 43 Terrain Rammed . | . . . . . Walls Destroyed . | . . . . . Machines Disabled . | . . . . . Actions | -11 -10 -9 -9 -8 --------- Run | Yrd Mat Mat Min Mat Total 2093 | 170 400 348 755 420 Wait 90 | . 24 25 40 1 Move 1753 | 136 323 281 674 339 Hop . | . . . . . Pick Up 24 | 4 7 5 2 6 Fast Attach 16 | 6 2 3 1 4 Attach 14 | 1 1 2 . 10 Detach 1 | . 1 . . . Swap 31 | . 5 4 9 13 Drop 24 | . 4 5 10 5 Fire 137 | 23 33 23 18 40 Melee 2 | . . . . 2 Ram . | . . . . . Kick 1 | . . . 1 . Crush . | . . . . . Escape Stasis . | . . . . . Rewire . | . . . . . Trap . | . . . . . Miscellaneous . | . . . . . Route ------- -11/Scrapyard -10/Materials (discovered 2 exits: *Mat / *Min) -9/Materials -9/Mines (discovered 2 exits: *Mat x2) -8/Materials (discovered 1 exit: [Fac]) History --------- Turn | Location | Event 26 | -11/Scrapyard | Discovered new exit (range 15) 244 | -11/Scrapyard | Entered Materials 303 | -10/Materials | Build established: Mutant 504 | -10/Materials | Discovered new exit (range 9) 514 | -10/Materials | Identified exit to Mines 662 | -10/Materials | Discovered new exit (range 15) 769 | -10/Materials | Identified exit to Materials 771 | -10/Materials | Entered another Materials area 771 | -9/Materials | Evolved 2 slots: Propulsion x2 1013 | -9/Materials | Repaired Aluminum Leg 1171 | -9/Materials | Identified exit to Mines 1203 | -9/Materials | Build established: Scavenger-Mutant 1222 | -9/Materials | Entered Mines 1303 | -9/Mines | Discovered new exit (range 14) 1483 | -9/Mines | Learned location of 1 exit from Lower Caves 1731 | -9/Mines | Learned Materials stockpile data 1767 | -9/Mines | Received a Rocket Launcher from a helpful Derelict 1857 | -9/Mines | Joined a pair of Derelicts in attacking an 0b10 outpost 2099 | -9/Mines | Discovered new exit (range 7) 2144 | -9/Mines | Entered Materials 2144 | -8/Materials | Evolved 2 slots: Power x1, Utility x1 2331 | -8/Materials | Discovered new exit (range 17) 2584 | -8/Materials | Lost 6 parts (1p3n1u1w) 2707 | -8/Materials | Core integrity fell below 50% 2723 | -8/Materials | Core integrity fell below 20% 2736 | -8/Materials | Destroyed by G-47 Trooper with Particle Gun Last Messages --------------- 02715_ G-47 Trooper destroyed. 02717_ R-06 Scavenger collects Wheel. 02718_ K-01 Serf collects debris. 02719_ Penetrated by Slug. 02720_ R-06 Scavenger collects Lgt. Ion Engine. 02721_ Extracted 23 matter. 02721_ K-01 Serf collects debris. 02722_ Penetrated by Slug. 02723_ R-06 Scavenger collects Aluminum Leg. 02724_ K-01 Serf collects debris. 02726_ Acquired Lgt. Nuclear Core. 02726_ R-06 Scavenger collects Lgt. Nuclear Core. 02728_ Penetrated by Slug. 02728_ Spread Laser destroyed. 02729_ K-01 Serf collects debris. 02730_ Acquired Lgt. Nuclear Core. 02732_ Lgt. Nuclear Core destroyed. 02732_ K-01 Serf collects debris. 02734_ Acquired Med. Armor Plating. 02735_ K-01 Serf collects debris. Map ----- +----------------------------------------------------+ | ?????????????????????????????????????????????????? | | ?????????????????????????????????????????????????? | | ?????????????????????????????????????????????????? | | ?????????????????????????????????????????????????? | | ?????????????????????????????????????????????????? | | ?????????????????????????????????????????????????? | | ?????????????????????????????????????????????????? | | ?????????????????????????????????????????????????? | | ??????????????]??????????????????????????????????? | | ?????????????????????????????????????????????????? | | ?????????????????????????????????????????????????? | | ??????????????????????????????? ???????????????? | | ??????????????????????????????? #??????????????? | | ??????????????????????????????? #??????????????? | | ??????????????????????????????? #??????????????? | | ??????????????????????????????? #??????????????? | | ?????????????????###### #?# #?????????####?? | | ??????????????????????# #?# #?????#######??? | | ??????????????????????# #?# ####### ##?? | | ?????????????????############?# ?? | | ????????????????? #????????# ?? | | ????????????????? #?######## ?? | | ????????????????? #?# [[=# %####### ##?? | | ????????????????? #?# !%%# #?????### ###??? | | ????????????????? #?# %k # #???????# ####?? | | ????????????????? #?#=@ gh +! #???????# ## ?? | | ????????????????? #?#=!!!= # #########+## ?? | | ????????????????? #?#=! # ## ## "?? | | ????????????????? #?######## ## ] """## "?? | | ?????????????????+############ # """## "?? | | ?????????????? # """## ?? | | ?????????????? T + ## "?? | | ???????????????# # "S ## "?? | | ???????????????##+############ # """ ## "?? | | ????????????????? ####???## ## "" [ # ?? | | ????????????????? """ "" #????# ## ## ?? | | ????????????????? R" """#????# ##############?? | | ??????????????? """ S"####?# #???????????# ?? | | ???????????????? """# ### #???????????# ?? | | ?????????????????"" [ "" # ###?????????# ?? | | ## T """ ??????"" # # ### # #?????????# ?? | | ## " """ ??????"" # ###?????????# ?? | | ## """ ?????? # #???????????# ?? | | ###+################# # ??????????# ?? | | #### #???????????# ?? | | # ####???????????# ?? | | ###??????????????# ?? | | ##################### ##????????????????????? | | #### #?????#!!] !%=?????????????????????? | | ???# """ #?????#!! T ! ?????????????????????? | +----------------------------------------------------+ Best States ------------- Heat Dissipation 45 Coolant Potential 50 Energy Generation 23 Energy Capacity 415 Matter Stores 300 Matter Capacity 300 Sight Range 16 Robot Scan Range 14 Terrain Scan Density 10 Armor Coverage 225 Evasion (%) 55 Offensive Hacking 10 Item Schematics ----------------- None Robot Schematics ------------------ None Fabricated ------------ Nothing Alien Tech Used ----------------- None Achievements -------------- None Challenges ------------ None Game ------ Seed ThrowingRelayChainsaw Manual? 0 Play Time 00:35:15 Cumulative 20.5 hours Start 2024.12.15 @ 03:50:35 End 2024.12.15 @ 04:27:48 Sessions 1 Manual Loads 0 Difficulty Rogue Special Mode None Game No. 31 Rogue 31 Adventurer 0 Explorer 0 Win Type - Total 0 Types 0/0/0/0/0/0/0/0/0 Lore% 8 Gallery% 17 Achievement% 17 Wizard Run 0 Options --------- Layout 0 ASCII 0 Keyboard 1 Movement Vi Keybinds 0 Fullscreen 1 Font 18/X11Bold Map View 76x50 Zoom Use 0% Tactical HUD 1 Map Filters NONE Filters NONE Steam 1 RUN: d6ada633-f37a-4eca-b47c-1b72b228c08d